fUSD/lending_fUSD_20250905
["ID","MTS","AMOUNT","RATE_DAILY","PERIOD"]
[383656774,1757075433152,-400.0,0.00024657,2]
[383656776,1757075433163,-400.0,0.00024657,2]
[383656778,1757075433174,-400.0,0.00024657,2]
[383656780,1757075433190,-400.0,0.00024657,2]
[383656782,1757075433200,-192.55390218,0.00024657,2]
[383656784,1757075433210,-400.0,0.00024657,2]
[383656786,1757075433223,-400.0,0.00024657,2]
[383656787,1757075433233,-400.0,0.00024657,2]
[383656790,1757075433246,-400.0,0.00024657,2]
[383656791,1757075433259,-400.0,0.00024657,2]
[383656794,1757075433274,-900.0,0.00024657,2]
[383656795,1757075433284,-150.0,0.00024657,2]
[383656798,1757075433296,-400.0,0.00024657,2]
[383656799,1757075433307,-400.0,0.00024657,2]
[383656801,1757075433317,-403.65,0.00024657,2]
[383656803,1757075433327,-400.0,0.00024657,2]
[383656806,1757075433339,-400.0,0.00024657,2]
[383656808,1757075433355,-405.26802903,0.00024657,2]
[383656810,1757075433367,-400.0,0.00024657,2]
[383656812,1757075433378,-400.0,0.00024657,2]
[383656814,1757075433389,-400.0,0.00024657,2]
[383656816,1757075433400,-400.0,0.00024657,2]
[383656818,1757075433411,-337.70932243,0.00024657,2]
[383656820,1757075433422,-400.0,0.00024657,2]
[383656822,1757075433441,-400.0,0.00024657,2]
[383656824,1757075433457,-400.0,0.00024657,2]
[383656826,1757075433469,-400.0,0.00024657,2]
[383656828,1757075433479,-283.14138578,0.00024657,2]
[383656830,1757075433491,-400.0,0.00024657,2]
[383656832,1757075433501,-400.0,0.00024657,2]
[383656833,1757075433511,-400.0,0.00024657,2]
[383656835,1757075433521,-400.0,0.00024657,2]
[383656837,1757075433534,-400.0,0.00024657,2]
[383656839,1757075433544,-400.0,0.00024657,2]
[383656841,1757075433555,-400.0,0.00024657,2]
[383656843,1757075433566,-400.0,0.00024657,2]
[383656845,1757075433578,-400.0,0.00024657,2]
[383656847,1757075433590,-400.0,0.00024657,2]
[383656849,1757075433602,-367.2,0.00024657,2]
[383656851,1757075433612,-400.0,0.00024657,2]
[383656853,1757075433623,-400.0,0.00024657,2]
[383656855,1757075433633,-250.0,0.00024657,2]
[383656857,1757075433644,-229.89116856,0.00024657,2]
[383656859,1757075433655,-400.0,0.00024657,2]
[383656861,1757075433665,-400.0,0.00024657,2]
[383656863,1757075433675,-212.0936782,0.00024657,2]
[383656865,1757075433690,-400.0,0.00024657,2]
[383656867,1757075433700,-254.21,0.00024657,2]
[383656869,1757075433711,-400.0,0.00024657,2]
[383656871,1757075433721,-400.0,0.00024657,2]
[383656873,1757075433731,-400.0,0.00024657,2]
[383656875,1757075433741,-400.0,0.00024657,2]
[383656877,1757075433751,-400.0,0.00024657,2]
[383656879,1757075433762,-483.69,0.00024657,2]
[383656881,1757075433772,-400.0,0.00024657,2]
[383656883,1757075433782,-400.0,0.00024657,2]
[383656885,1757075433791,-400.0,0.00024657,2]
[383656887,1757075433801,-400.0,0.00024657,2]
[383656889,1757075433811,-400.0,0.00024657,2]
[383656891,1757075433821,-400.0,0.00024657,2]
[383656893,1757075433831,-423.29389618,0.00024657,2]
[383656894,1757075433841,-400.0,0.00024657,2]
[383656897,1757075433852,-401.7,0.00024657,2]
[383656898,1757075433863,-400.0,0.00024657,2]
[383656901,1757075433873,-405.42315313,0.00024657,2]
[383656902,1757075433884,-400.0,0.00024657,2]
[383656904,1757075433894,-431.78,0.00024657,2]
[383656906,1757075433906,-400.0,0.00024657,2]
[383656908,1757075433917,-400.0,0.00024657,2]
[383656910,1757075433927,-481.80009844,0.00024657,2]
[383656913,1757075433943,-400.0,0.00024657,2]
[383656914,1757075433953,-400.0,0.00024657,2]
[383656916,1757075433964,-990.73,0.00024657,2]
[383656918,1757075433974,-400.0,0.00024657,2]
[383656920,1757075433984,-400.0,0.00024657,2]
[383656923,1757075433994,-401.49625574,0.00024657,2]
[383656925,1757075434004,-400.0,0.00024657,2]
[383656927,1757075434015,-400.0,0.00024657,2]
[383656929,1757075434025,-400.0,0.00024657,2]
[383656931,1757075434034,-400.0,0.00024657,2]
[383656932,1757075434044,-400.0,0.00024657,2]
[383656935,1757075434054,-400.0,0.00024657,2]
[383656936,1757075434064,-400.0,0.00024657,2]
[383656938,1757075434074,-400.0,0.00024657,2]
[383656940,1757075434084,-400.0,0.00024657,2]
[383656943,1757075434095,-400.0,0.00024657,2]
[383656945,1757075434105,-400.0,0.00024657,2]
[383656947,1757075434115,-400.0,0.00024657,2]
[383656949,1757075434125,-400.0,0.00024657,2]
[383656951,1757075434145,-400.0,0.00024657,2]
[383656952,1757075434155,-400.0,0.00024657,2]
[383656954,1757075434166,-400.0,0.00024657,2]
[383656956,1757075434177,-400.0,0.00024657,2]
[383656958,1757075434193,-150.0,0.00024657,2]
[383656960,1757075434203,-150.0,0.00024657,2]
[383656962,1757075434216,-400.0,0.00024657,2]
[383656964,1757075434228,-150.0,0.00024657,2]
[383656966,1757075434239,-150.0,0.00024657,2]
[383656968,1757075434250,-400.0,0.00024657,2]
[383656970,1757075434261,-150.0,0.00024657,2]
[383656971,1757075434275,-150.0,0.00024657,2]
[383656972,1757075434285,-150.0,0.00024657,2]
[383656973,1757075434297,-150.0,0.00024657,2]
[383656974,1757075434308,-150.0,0.00024657,2]
[383656975,1757075434319,-150.0,0.00024657,2]
[383656976,1757075434330,-153.1392916,0.00024657,2]
[383656977,1757075434340,-500.0,0.00024657,2]
[383656978,1757075434351,-400.0,0.00024657,2]
[383656979,1757075434362,-400.0,0.00024657,2]
[383656980,1757075434372,-400.0,0.00024657,2]
[383656981,1757075434382,-406.3,0.00024657,2]
[383656983,1757075434392,-400.0,0.00024657,2]
[383656985,1757075434403,-500.0,0.00024657,2]
[383656987,1757075434413,-500.0,0.00024657,2]
[383656989,1757075434423,-362.32013707,0.00024657,2]
[383656991,1757075434432,-289.90778652,0.00024657,2]
[383656993,1757075434448,-432.9,0.00024657,2]
[383656995,1757075434458,-150.0,0.00024657,2]
[383656996,1757075434469,-250.0,0.00024657,2]
[383656998,1757075434479,-500.0,0.00024657,2]
[383657000,1757075434489,-500.0,0.00024657,2]
[383657002,1757075434499,-150.0,0.00024657,2]
[383657004,1757075434510,-150.0,0.00024657,2]
[383657006,1757075434520,-150.0,0.00024657,2]
[383657008,1757075434531,-150.0,0.00024657,2]
[383657010,1757075434541,-150.0,0.00024657,2]
[383657012,1757075434551,-500.0,0.00024657,2]
[383657014,1757075434561,-207.94176887,0.00024657,2]
[383657016,1757075434572,-150.0,0.00024657,2]
[383657018,1757075434583,-150.0,0.00024657,2]
[383657020,1757075434593,-150.0,0.00024657,2]
[383657021,1757075434603,-150.0,0.00024657,2]
[383657022,1757075434613,-150.0,0.00024657,2]
[383657024,1757075434623,-150.0,0.00024657,2]
[383657026,1757075434633,-150.0,0.00024657,2]
[383657028,1757075434643,-785.96817,0.0002469,2]
[383657030,1757075434653,-500.0,0.00024697,2]
[383657032,1757075434663,-500.0,0.000247,9]
[383657034,1757075434673,-7949.91445702,0.00024731,2]
[383657036,1757075434684,-156.08587707,0.00024731,2]
[383657038,1757075434699,-1323.6803628,0.00024733,2]
[383657040,1757075434710,-598.27552825,0.00024736,5]
[383657042,1757075434721,-618.93805216,0.00024752,2]
[383657044,1757075434730,-360.01568931,0.00024798,2]
[383657046,1757075434742,-155.62130791,0.00024798,2]
[383657048,1757075434752,-500.0,0.00024799,2]
[383657050,1757075434762,-1000.0,0.000248,9]
[383657051,1757075434772,-785.96816,0.0002481,2]
[383657053,1757075434783,-285.45057749,0.00024811,2]
[383657055,1757075434794,-651.52516944,0.00024813,2]
[383657057,1757075434804,-9138.7284548,0.0002482,2]
[383657059,1757075434814,-18804.1731164,0.0002482,2]
[383657061,1757075434828,-21257.8090967,0.0002482,2]
[383657063,1757075434837,-150.5678418,0.00024831,2]
[383657065,1757075434847,-7680.3444248,0.00024836,2]
[383657067,1757075434857,-1405.3821457,0.00024836,2]
[383657069,1757075434869,-299.43058132,0.00024854,2]
[383657071,1757075434878,-500.0,0.00024873,2]
[383657073,1757075434889,-500.39744487,0.00024873,2]
[383657075,1757075434900,-501.17041215,0.00024873,2]
[383657077,1757075434910,-371.98006638,0.00024873,2]
[383657079,1757075434919,-500.0,0.00024873,2]
[383657081,1757075434928,-500.0,0.00024877,2]
[383657083,1757075434941,-166.88,0.0002488,2]
[383657085,1757075434951,-150.0,0.00024884,2]
[383657087,1757075434960,-166.88,0.00024884,2]
[383657089,1757075434970,-347.95,0.00024884,2]
[383657091,1757075434979,-867.73919486,0.00024886,2]
[383657093,1757075434989,-1105.94211109,0.00024887,2]
[383657095,1757075434999,-9213.46528227,0.00024888,3]
[383657098,1757075435015,-1917.29626969,0.00024888,3]
[383657100,1757075435026,-1000.0,0.00024888,3]
[383657102,1757075435038,-8584.26741,0.00024888,3]
[383657105,1757075435054,-1094.20277234,0.00024888,3]
[383657107,1757075435063,-166.88,0.00024888,2]
[383657109,1757075435073,-1344.14502733,0.00024889,2]
[383657111,1757075435083,-21809.2317343,0.0002489,3]
[383657113,1757075435093,-160.0,0.0002489,3]
[383657115,1757075435103,-160.0,0.0002489,3]
[383657117,1757075435113,-21809.2317343,0.00024891,3]
[383657119,1757075435123,-1582.34794356,0.00024891,2]
[383657121,1757075435133,-1820.5508598,0.00024892,2]
[383657123,1757075435143,-400.0,0.00024893,2]
[383657125,1757075435153,-400.0,0.00024893,2]
[383657127,1757075435163,-490.72,0.00024893,2]
[383657129,1757075435172,-880.94,0.00024893,2]
[383657131,1757075435181,-400.0,0.00024893,2]
[383657133,1757075435199,-400.0,0.00024893,2]
[383657135,1757075435208,-400.0,0.00024893,2]
[383657137,1757075435224,-400.0,0.00024893,2]
[383657139,1757075435237,-400.0,0.00024893,2]
[383657141,1757075435247,-2058.75377604,0.00024894,2]
[383657143,1757075435259,-21809.2317343,0.00024894,3]
[383657145,1757075435269,-21809.2317343,0.00024895,3]
[383657147,1757075435280,-2296.95669227,0.00024896,2]
[383657149,1757075435291,-514.736181,0.00024896,2]
[383657151,1757075435307,-160.0,0.00024896,2]
[383657153,1757075435317,-160.0,0.00024896,2]
[383657155,1757075435327,-212.63008182,0.00024896,2]
[383657157,1757075435337,-160.0,0.00024896,2]
[383657159,1757075435347,-154.918355,0.00024897,2]
[383657161,1757075435358,-242.845095,0.00024897,2]
[383657163,1757075435368,-625.83,0.00024897,2]
[383657165,1757075435381,-403.75608153,0.00024897,2]
[383657167,1757075435392,-1051.88,0.00024897,2]
[383657169,1757075435404,-516.75,0.00024897,2]
[383657171,1757075435415,-400.0,0.00024897,2]
[383657174,1757075435428,-317.02974768,0.00024897,2]
[383657175,1757075435445,-400.0,0.00024897,2]
[383657177,1757075435455,-425.53,0.00024897,2]
[383657179,1757075435466,-164.85523018,0.00024897,2]
[383657182,1757075435481,-235.14476982,0.00024897,2]
[383657184,1757075435492,-500.0,0.00024897,2]
[383657186,1757075435505,-407.16,0.00024897,2]
[383657188,1757075435517,-1364.93134739,0.00024897,2]
[383657190,1757075435533,-1807.60865261,0.00024897,2]
[383657192,1757075435544,-400.0,0.00024897,2]
[383657194,1757075435555,-400.0,0.00024897,2]
[383657196,1757075435566,-400.0,0.00024897,2]
[383657198,1757075435579,-400.0,0.00024897,2]
[383657200,1757075435590,-3541.37710591,0.00024897,2]
[383657202,1757075435603,-2055.98289409,0.00024897,2]
[383657204,1757075435614,-400.0,0.00024897,2]
[383657206,1757075435626,-535.8,0.00024897,2]
[383657208,1757075435637,-400.0,0.00024897,2]
[383657210,1757075435648,-400.0,0.00024897,2]
[383657212,1757075435660,-400.0,0.00024897,2]
[383657214,1757075435671,-484.76,0.00024897,2]
[383657216,1757075435683,-400.0,0.00024897,2]
[383657218,1757075435700,-400.0,0.00024897,2]
[383657220,1757075435711,-2123.95,0.00024897,2]
[383657221,1757075435722,-2535.15960851,0.00024897,2]
[383657222,1757075435732,-407.38,0.00024897,2]
[383657223,1757075435743,-527.1182402,0.00024897,2]
[383657224,1757075435753,-186.73,0.00024897,2]
[383657225,1757075435763,-400.0,0.00024897,2]
[383657226,1757075435775,-400.0,0.00024897,2]
[383657227,1757075435785,-400.0,0.00024897,2]
[383657228,1757075435796,-400.0,0.00024897,2]
[383657229,1757075435806,-455.89,0.00024897,2]
[383657230,1757075435816,-464.12,0.00024897,2]
[383657231,1757075435826,-400.0,0.00024897,2]
[383657232,1757075435837,-400.0,0.00024897,2]
[383657233,1757075435847,-154.281367,0.00024897,2]
[383657234,1757075435857,-400.0,0.00024897,2]
[383657235,1757075435868,-405.22160275,0.00024897,2]
[383657236,1757075435879,-400.0,0.00024897,2]
[383657237,1757075435889,-400.0,0.00024897,2]
[383657238,1757075435900,-400.0,0.00024897,2]
[383657239,1757075435910,-400.0,0.00024897,2]
[383657240,1757075435920,-400.0,0.00024897,2]
[383657241,1757075435930,-504.0,0.00024897,2]
[383657242,1757075436153,-400.0,0.00024897,2]
[383657243,1757075436164,-400.0,0.00024897,2]
[383657244,1757075436174,-400.0,0.00024897,2]
[383657245,1757075436184,-400.0,0.00024897,2]
[383657246,1757075436205,-400.0,0.00024897,2]
[383657247,1757075436219,-400.0,0.00024897,2]
[383657248,1757075436230,-400.0,0.00024897,2]
[383657249,1757075436240,-400.0,0.00024897,2]
[383657250,1757075436251,-400.0,0.00024897,2]
[383657251,1757075436262,-400.0,0.00024897,2]
[383657252,1757075436275,-6430.84040906,0.00024898,2]
[383657253,1757075436285,-400.0,0.00024898,2]
[383657254,1757075436296,-400.0,0.00024898,2]
[383657255,1757075436306,-400.0,0.00024898,2]
[383657256,1757075436317,-400.0,0.00024898,2]
[383657257,1757075436327,-400.0,0.00024898,2]
[383657258,1757075436337,-400.0,0.00024898,2]
[383657259,1757075436347,-500.0,0.00024898,2]
[383657260,1757075436358,-400.0,0.00024898,2]
[383657261,1757075436368,-400.0,0.00024898,2]
[383657262,1757075436379,-400.0,0.00024898,2]
[383657263,1757075436388,-190.0,0.00024898,2]
[383657264,1757075436398,-400.0,0.00024898,2]
[383657265,1757075436408,-400.0,0.00024898,2]
[383657266,1757075436418,-400.0,0.00024898,2]
[383657267,1757075436427,-400.0,0.00024898,2]
[383657268,1757075436443,-400.0,0.00024898,2]
[383657269,1757075436453,-400.0,0.00024898,2]
[383657270,1757075436463,-400.0,0.00024898,2]
[383657271,1757075436473,-402.86915531,0.00024898,2]
[383657272,1757075436482,-400.0,0.00024898,2]
[383657273,1757075436491,-400.0,0.00024898,2]
[383657274,1757075436501,-403.63657144,0.00024898,2]
[383657275,1757075436511,-400.0,0.00024898,2]
[383657276,1757075436522,-400.0,0.00024898,2]
[383657277,1757075436532,-400.0,0.00024898,2]
[383657278,1757075436542,-400.0,0.00024898,2]
[383657279,1757075436552,-400.0,0.00024898,2]
[383657280,1757075436562,-400.0,0.00024898,2]
[383657281,1757075436574,-402.10122185,0.00024898,2]
[383657282,1757075436584,-400.0,0.00024898,2]
[383657283,1757075436594,-400.0,0.00024898,2]
[383657284,1757075436604,-400.0,0.00024898,2]
[383657285,1757075436614,-400.0,0.00024898,2]
[383657286,1757075436624,-400.0,0.00024898,2]
[383657287,1757075436635,-188.07654055,0.00024898,2]
[383657288,1757075436645,-400.0,0.00024898,2]
[383657289,1757075436654,-400.0,0.00024898,2]
[383657290,1757075436662,-400.0,0.00024898,2]
[383657291,1757075436671,-400.0,0.00024898,2]
[383657292,1757075436680,-400.0,0.00024898,2]
[383657293,1757075436696,-400.0,0.00024898,2]
[383657294,1757075436706,-400.0,0.00024898,2]
[383657295,1757075436717,-400.0,0.00024898,2]
[383657296,1757075436727,-400.0,0.00024898,2]
[383657297,1757075436736,-400.0,0.00024898,2]
[383657298,1757075436746,-400.0,0.00024898,2]
[383657299,1757075436756,-400.0,0.00024898,2]
[383657300,1757075436765,-400.0,0.00024898,2]
[383657301,1757075436775,-400.0,0.00024898,2]
[383657302,1757075436785,-400.0,0.00024898,2]
[383657303,1757075436795,-400.0,0.00024898,2]
[383657304,1757075436804,-400.0,0.00024898,2]
[383657305,1757075436814,-400.0,0.00024898,2]
[383657306,1757075436824,-400.0,0.00024898,2]
[383657307,1757075436833,-400.0,0.00024898,2]
[383657308,1757075436843,-400.0,0.00024898,2]
[383657309,1757075436852,-400.0,0.00024898,2]
[383657310,1757075436862,-402.29854492,0.00024898,2]
[383657311,1757075436872,-400.0,0.00024898,2]
[383657312,1757075436881,-400.0,0.00024898,2]
[383657313,1757075436891,-400.0,0.00024898,2]
[383657314,1757075436900,-378.20340224,0.00024898,2]
[383657315,1757075436909,-377.13069991,0.00024898,2]
[383657316,1757075436919,-400.0,0.00024898,2]
[383657317,1757075436929,-400.0,0.00024898,2]
[383657318,1757075436944,-400.0,0.00024898,2]
[383657319,1757075436953,-400.0,0.00024898,2]
[383657320,1757075436963,-400.0,0.00024898,2]
[383657321,1757075436973,-400.0,0.00024898,2]
[383657322,1757075436982,-400.0,0.00024898,2]
[383657323,1757075436993,-400.0,0.00024898,2]
[383657324,1757075437003,-400.0,0.00024898,2]
[383657325,1757075437013,-400.0,0.00024898,2]
[383657326,1757075437023,-400.0,0.00024898,2]
[383657327,1757075437032,-400.0,0.00024898,2]
[383657328,1757075437042,-400.0,0.00024898,2]
[383657329,1757075437051,-400.0,0.00024898,2]
[383657330,1757075437061,-500.0,0.00024898,2]
[383657331,1757075437071,-400.0,0.00024898,2]
[383657332,1757075437080,-400.0,0.00024898,2]
[383657333,1757075437090,-400.0,0.00024898,2]
[383657334,1757075437099,-400.0,0.00024898,2]
[383657335,1757075437108,-400.0,0.00024898,2]
[383657336,1757075437118,-400.0,0.00024898,2]
[383657337,1757075437127,-405.06870046,0.00024898,2]
[383657338,1757075437137,-400.0,0.00024898,2]
[383657339,1757075437146,-401.85589025,0.00024898,2]
[383657340,1757075437155,-400.0,0.00024898,2]
[383657341,1757075437165,-400.0,0.00024898,2]
[383657342,1757075437174,-400.0,0.00024898,2]
[383657343,1757075437184,-400.0,0.00024898,2]
[383657344,1757075437201,-400.0,0.00024898,2]
[383657345,1757075437210,-400.0,0.00024898,2]
[383657346,1757075437220,-400.0,0.00024898,2]
[383657347,1757075437231,-400.0,0.00024898,2]
[383657348,1757075437242,-400.0,0.00024898,2]
[383657349,1757075437251,-400.0,0.00024898,2]
[383657350,1757075437261,-400.0,0.00024898,2]
[383657351,1757075437271,-400.0,0.00024898,2]
[383657352,1757075437282,-400.0,0.00024898,2]
[383657353,1757075437295,-400.0,0.00024898,2]
[383657354,1757075437305,-400.0,0.00024898,2]
[383657355,1757075437315,-400.0,0.00024898,2]
[383657356,1757075437324,-402.0,0.00024898,2]
[383657357,1757075437334,-400.0,0.00024898,2]
[383657358,1757075437343,-400.0,0.00024898,2]
[383657359,1757075437353,-400.0,0.00024898,2]
[383657360,1757075437362,-294.39222729,0.00024898,2]
[383657361,1757075437371,-400.0,0.00024898,2]
[383657362,1757075437380,-400.0,0.00024898,2]
[383657363,1757075437390,-400.0,0.00024898,2]
[383657364,1757075437400,-402.67314739,0.00024898,2]
[383657365,1757075437412,-400.0,0.00024898,2]
[383657366,1757075437421,-400.0,0.00024898,2]
[383657367,1757075437431,-436.23600303,0.00024898,2]
[383657368,1757075437446,-400.0,0.00024898,2]
[383657369,1757075437456,-400.0,0.00024898,2]
[383657370,1757075437465,-1004.43240924,0.00024898,2]
[383657371,1757075437475,-400.0,0.00024898,2]
[383657372,1757075437484,-400.0,0.00024898,2]
[383657373,1757075437494,-401.89322216,0.00024898,2]
[383657374,1757075437503,-400.0,0.00024898,2]
[383657375,1757075437513,-400.0,0.00024898,2]
[383657376,1757075437522,-400.0,0.00024898,2]
[383657377,1757075437532,-400.0,0.00024898,2]
[383657378,1757075437542,-400.0,0.00024898,2]
[383657379,1757075437552,-400.0,0.00024898,2]
[383657380,1757075437562,-400.0,0.00024898,2]
[383657381,1757075437574,-400.0,0.00024898,2]
[383657382,1757075437585,-400.0,0.00024898,2]
[383657383,1757075437595,-400.0,0.00024898,2]
[383657384,1757075437605,-400.0,0.00024898,2]
[383657385,1757075437615,-400.0,0.00024898,2]
[383657386,1757075437625,-400.0,0.00024898,2]
[383657387,1757075437634,-400.0,0.00024898,2]
[383657388,1757075437645,-400.0,0.00024898,2]
[383657389,1757075437660,-1000.0,0.00024898,2]
[383657390,1757075437669,-400.0,0.00024898,2]
[383657391,1757075437679,-402.91175386,0.00024898,2]
[383657392,1757075437694,-400.0,0.00024898,2]
[383657393,1757075437705,-401.81486561,0.00024898,2]
[383657394,1757075437715,-400.0,0.00024898,2]
[383657395,1757075437725,-400.0,0.00024898,2]
[383657396,1757075437736,-400.0,0.00024898,2]
[383657397,1757075437745,-409.02,0.00024898,2]
[383657398,1757075437755,-401.96034005,0.00024898,2]
[383657399,1757075437765,-400.0,0.00024898,2]
[383657400,1757075437774,-400.0,0.00024898,2]
[383657401,1757075437784,-400.0,0.00024898,2]
[383657402,1757075437794,-400.0,0.00024898,2]
[383657403,1757075437804,-545.74897828,0.00024898,2]
[383657404,1757075437814,-400.0,0.00024898,2]
[383657405,1757075437823,-400.0,0.00024898,2]
[383657406,1757075437833,-400.0,0.00024898,2]
[383657407,1757075437842,-400.0,0.00024898,2]
[383657408,1757075437852,-400.0,0.00024898,2]
[383657409,1757075437862,-401.81703981,0.00024898,2]
[383657410,1757075437871,-400.0,0.00024898,2]
[383657411,1757075437881,-400.0,0.00024898,2]
[383657414,1757075437890,-400.0,0.00024898,2]
[383657416,1757075437899,-401.89096164,0.00024898,2]
[383657418,1757075437908,-401.8372646,0.00024898,2]
[383657419,1757075437918,-400.0,0.00024898,2]
[383657420,1757075437927,-400.0,0.00024898,2]
[383657421,1757075437936,-408.53347225,0.00024898,2]
[383657422,1757075437950,-400.0,0.00024898,2]
[383657423,1757075437959,-400.0,0.00024898,2]
[383657424,1757075437968,-400.0,0.00024898,2]
[383657425,1757075437978,-400.0,0.00024898,2]
[383657426,1757075437988,-400.0,0.00024898,2]
[383657427,1757075437997,-403.7792473,0.00024898,2]
[383657428,1757075438006,-400.0,0.00024898,2]
[383657429,1757075438015,-400.0,0.00024898,2]
[383657430,1757075438024,-400.0,0.00024898,2]
[383657431,1757075438034,-400.0,0.00024898,2]
[383657432,1757075438043,-400.0,0.00024898,2]
[383657433,1757075438052,-400.0,0.00024898,2]
[383657434,1757075438061,-400.0,0.00024898,2]
[383657435,1757075438070,-500.0,0.00024898,2]
[383657436,1757075438080,-400.0,0.00024898,2]
[383657437,1757075438089,-477.16221265,0.00024898,2]
[383657438,1757075438098,-400.0,0.00024898,2]
[383657439,1757075438107,-400.0,0.00024898,2]
[383657440,1757075438116,-400.0,0.00024898,2]
[383657441,1757075438125,-400.0,0.00024898,2]
[383657442,1757075438135,-400.0,0.00024898,2]
[383657443,1757075438144,-400.0,0.00024898,2]
[383657444,1757075438153,-400.0,0.00024898,2]
[383657445,1757075438163,-400.0,0.00024898,2]
[383657446,1757075438173,-400.0,0.00024898,2]
[383657447,1757075438182,-400.0,0.00024898,2]
[383657448,1757075438196,-400.0,0.00024898,2]
[383657449,1757075438206,-400.0,0.00024898,2]
[383657450,1757075438215,-400.0,0.00024898,2]
[383657451,1757075438225,-400.0,0.00024898,2]
[383657452,1757075438236,-400.0,0.00024898,2]
[383657453,1757075438245,-400.0,0.00024898,2]
[383657454,1757075438255,-400.0,0.00024898,2]
[383657455,1757075438265,-402.90972056,0.00024898,2]
[383657456,1757075438275,-371.96224672,0.00024898,2]
[383657457,1757075438290,-812.63,0.00024898,2]
[383657458,1757075438300,-400.0,0.00024898,2]
[383657459,1757075438309,-400.0,0.00024898,2]
[383657460,1757075438319,-400.0,0.00024898,2]
[383657461,1757075438328,-408.77941502,0.00024898,2]
[383657462,1757075438337,-400.0,0.00024898,2]
[383657463,1757075438347,-400.0,0.00024898,2]
[383657464,1757075438357,-400.0,0.00024898,2]
[383657465,1757075438367,-400.0,0.00024898,2]
[383657466,1757075438377,-400.0,0.00024898,2]
[383657467,1757075438386,-400.0,0.00024898,2]
[383657468,1757075438396,-492.31,0.00024898,2]
[383657469,1757075438406,-739.65,0.00024898,2]
[383657470,1757075438416,-400.0,0.00024898,2]
[383657471,1757075438426,-1000.0,0.00024898,2]
[383657472,1757075438436,-400.0,0.00024898,2]
[383657473,1757075438452,-400.0,0.00024898,2]
[383657474,1757075438462,-400.0,0.00024898,2]
[383657476,1757075438472,-400.0,0.00024898,2]
[383657478,1757075438482,-400.0,0.00024898,2]
[383657479,1757075438492,-400.0,0.00024898,2]
[383657480,1757075438502,-407.02994781,0.00024898,2]
[383657481,1757075438511,-503.12,0.00024898,2]
[383657482,1757075438528,-400.0,0.00024898,2]
[383657483,1757075438540,-400.0,0.00024898,2]
[383657484,1757075438550,-400.0,0.00024898,2]
[383657485,1757075438559,-435.53,0.00024898,2]
[383657486,1757075438569,-302.36,0.00024898,2]
[383657487,1757075438581,-400.0,0.00024898,2]
[383657488,1757075438591,-570.21,0.00024898,2]
[383657489,1757075438601,-400.0,0.00024898,2]
[383657490,1757075438611,-400.0,0.00024898,2]
[383657491,1757075438620,-400.0,0.00024898,2]
[383657492,1757075438630,-400.0,0.00024898,2]
[383657493,1757075438640,-847.85,0.00024898,2]
[383657494,1757075438649,-400.0,0.00024898,2]
[383657495,1757075438659,-486.82,0.00024898,2]